fUST/lending_fUST_20260319
["ID","MTS","AMOUNT","RATE_DAILY","PERIOD"]
[408598079,1773917938350,-1000.0,3e-05,15]
[408598080,1773917938717,-1000.0,3e-05,15]
[408598081,1773917939208,-1000.0,3e-05,15]
[408598082,1773917939543,-1000.0,2.987e-05,2]
[408598083,1773917940008,-1000.0,2.987e-05,2]
[408598084,1773917940401,-1000.0,2.987e-05,2]
[408598085,1773917941556,-1000.0,2.987e-05,2]
[408598086,1773917941588,-1000.0,2.987e-05,2]
[408598087,1773917941768,-1000.0,3e-05,15]
[408598088,1773917942746,-1000.0,3e-05,15]
[408598089,1773917943222,-1000.0,3e-05,15]
[408598090,1773917943732,-1000.0,3e-05,15]
[408598091,1773917944084,-1000.0,3e-05,15]
[408598092,1773917944453,-1000.0,3e-05,15]
[408598093,1773917944908,-1000.0,3e-05,15]
[408598094,1773917945212,-1000.0,3e-05,15]
[408598095,1773917945681,-1000.0,3e-05,15]
[408598096,1773917949055,-1000.0,3e-05,15]
[408598097,1773917949627,-1000.0,3e-05,15]
[408598098,1773917949854,-1000.0,3e-05,15]
[408598099,1773917950329,-1000.0,3e-05,15]
[408598100,1773917950822,-1000.0,3e-05,15]
[408598101,1773917951207,-1000.0,3e-05,15]
[408598102,1773917951884,-1000.0,3e-05,15]
[408598103,1773917951947,-1000.0,3e-05,15]
[408598104,1773917952318,-1000.0,3e-05,15]
[408598105,1773917952692,-1000.0,3e-05,15]
[408598106,1773917954606,-1000.0,3e-05,15]
[408598107,1773917954824,-1000.0,3e-05,15]
[408598108,1773917955193,-1000.0,3e-05,15]
[408598109,1773917955676,-1000.0,3e-05,15]
[408598110,1773917956229,-1000.0,3e-05,15]
[408598111,1773917956527,-1000.0,3e-05,15]
[408598112,1773917956883,-1000.0,3e-05,15]
[408598113,1773917957351,-1000.0,3e-05,15]
[408598114,1773917959063,-1000.0,3e-05,15]
[408598115,1773917959431,-1000.0,3e-05,15]
[408598116,1773917959796,-1000.0,3e-05,15]
[408598117,1773917962443,-1000.0,2.987e-05,2]
[408598118,1773917962832,-1000.0,2.987e-05,2]
[408598119,1773917963211,-1000.0,2.987e-05,2]
[408598120,1773917964134,-1000.0,2.987e-05,2]
[408598121,1773917964614,-1000.0,2.987e-05,2]
[408598122,1773917964956,-1000.0,3e-05,15]
[408598123,1773917965409,-1000.0,3e-05,15]
[408598124,1773917965874,-1000.0,3e-05,15]
[408598125,1773917966216,-1000.0,3e-05,15]
[408598126,1773917966623,-1000.0,3e-05,15]
[408598127,1773917966940,-1000.0,3e-05,15]
[408598128,1773917967309,-1000.0,3e-05,15]
[408598129,1773917968577,-1000.0,3e-05,15]
[408598130,1773917969039,-1000.0,3e-05,15]
[408598131,1773917969376,-1000.0,3e-05,15]
[408598132,1773917969862,-1000.0,3e-05,15]
[408598133,1773917970231,-1000.0,3e-05,15]
[408598134,1773917972110,-1000.0,3e-05,15]
[408598135,1773917973096,-1000.0,3e-05,15]
[408598136,1773917973749,-1000.0,3e-05,15]
[408598137,1773917974465,-1000.0,3e-05,15]
[408598138,1773917979693,-800.0,3e-05,15]
[408598140,1773918005948,-1000.0,2.927e-05,2]
[408598141,1773918006891,-1000.0,2.927e-05,2]
[408598142,1773918007271,-1000.0,2.927e-05,2]
[408598143,1773918007419,-1000.0,2.927e-05,2]
[408598144,1773918007589,-1000.0,2.927e-05,2]
[408598145,1773918007948,-1000.0,2.956e-05,2]
[408598146,1773918008456,-200.0,2.956e-05,2]
[408598147,1773918008476,-800.0,2.957e-05,2]
[408598148,1773918008955,-1000.0,2.957e-05,2]
[408598149,1773918009437,-1000.0,2.957e-05,2]
[408598150,1773918009912,-1000.0,2.957e-05,2]
[408598151,1773918010394,-1000.0,2.957e-05,2]
[408598152,1773918010699,-200.0,2.957e-05,2]
[408598153,1773918010720,-300.0,2.986e-05,2]
[408598154,1773918010741,-300.0,2.986e-05,2]
[408598155,1773918010763,-200.0,2.986e-05,2]
[408598156,1773918011059,-100.0,2.986e-05,2]
[408598157,1773918011079,-300.0,2.986e-05,2]
[408598158,1773918011100,-600.0,2.987e-05,2]
[408598159,1773918011367,-1000.0,2.987e-05,2]
[408598160,1773918011796,-1000.0,2.987e-05,2]
[408598161,1773918012256,-1000.0,2.987e-05,2]
[408598162,1773918012760,-1000.0,2.987e-05,2]
[408598163,1773918013252,-400.0,2.987e-05,2]
[408598164,1773918013273,-180.04099278,2.987e-05,2]
[408598165,1773918013294,-419.95900722,3e-05,15]
[408598166,1773918013712,-1000.0,3e-05,15]
[408598167,1773918014516,-1000.0,3e-05,15]
[408598168,1773918014641,-1000.0,3e-05,15]
[408598169,1773918014992,-1000.0,2.957e-05,2]
[408598170,1773918015302,-1000.0,2.957e-05,2]
[408598171,1773918015860,-1000.0,2.957e-05,2]
[408598172,1773918015996,-1000.0,2.957e-05,2]
[408598173,1773918016503,-1000.0,2.957e-05,2]
[408598174,1773918016652,-1000.0,3e-05,15]
[408598175,1773918017036,-1000.0,3e-05,15]
[408598176,1773918017514,-1000.0,3e-05,15]
[408598177,1773918017814,-1000.0,3e-05,15]
[408598178,1773918018436,-1000.0,3e-05,15]
[408598179,1773918018529,-1000.0,3e-05,15]
[408598180,1773918018881,-1000.0,3e-05,15]
[408598181,1773918019254,-1000.0,3e-05,15]
[408598182,1773918019600,-1000.0,3e-05,15]
[408598183,1773918019949,-1000.0,3e-05,15]
[408598184,1773918020372,-1000.0,3e-05,15]
[408598185,1773918020657,-1000.0,3e-05,15]
[408598186,1773918020999,-1000.0,3e-05,15]
[408598187,1773918021333,-1000.0,3e-05,15]
[408598188,1773918021712,-1000.0,3e-05,15]
[408598189,1773918022018,-1000.0,3e-05,15]
[408598190,1773918022359,-1000.0,3e-05,15]
[408598191,1773918022717,-1000.0,2.987e-05,2]
[408598192,1773918023026,-1000.0,2.987e-05,2]
[408598193,1773918023374,-1000.0,2.987e-05,2]
[408598194,1773918023729,-1000.0,2.987e-05,2]
[408598195,1773918024089,-1000.0,2.987e-05,2]
[408598196,1773918024448,-1000.0,3e-05,15]
[408598197,1773918024871,-4059.57902111,3e-05,15]
[408598198,1773918024911,-1000.0,3e-05,15]
[408598199,1773918025413,-1000.0,3e-05,15]
[408598200,1773918025885,-1000.0,3e-05,15]
[408598201,1773918026189,-1000.0,3e-05,15]
[408598202,1773918027472,-1000.0,3e-05,15]
[408598203,1773918028322,-1000.0,3e-05,15]
[408598204,1773918029521,-1000.0,3e-05,15]
[408598205,1773918030552,-1000.0,2.987e-05,2]
[408598206,1773918030958,-1000.0,2.987e-05,2]
[408598207,1773918031366,-1000.0,2.987e-05,2]
[408598208,1773918031857,-1000.0,2.987e-05,2]
[408598209,1773918032354,-1000.0,2.987e-05,2]
[408598210,1773918033432,-1000.0,3e-05,15]
[408598211,1773918033942,-1000.0,3e-05,15]
[408598212,1773918034427,-1000.0,3e-05,15]
[408598213,1773918034802,-1000.0,3e-05,15]
[408598214,1773918035392,-1000.0,3e-05,15]
[408598215,1773918036652,-1000.0,3e-05,15]
[408598216,1773918037254,-1000.0,3e-05,15]
[408598217,1773918037385,-861.54847703,3e-05,15]
[408598218,1773918037413,-138.45152297,3.017e-05,2]
[408598219,1773918037783,-661.54847703,3.017e-05,2]
[408598220,1773918037814,-300.0,3.059e-05,2]
[408598221,1773918037844,-38.45152297,3.059e-05,2]
[408598222,1773918039979,-1000.0,3.028e-05,2]
[408598223,1773918042590,-1000.0,3.028e-05,2]
[408598224,1773918043721,-1000.0,3.028e-05,2]
[408598225,1773918044521,-1000.0,3.028e-05,2]
[408598226,1773918045365,-1000.0,3.028e-05,2]
[408598227,1773918046168,-261.54847703,3.059e-05,2]
[408598228,1773918046192,-300.0,3.059e-05,2]
[408598229,1773918046216,-300.0,3.059e-05,2]
[408598230,1773918046239,-138.45152297,3.059e-05,2]
[408598231,1773918066088,-1000.0,2.968e-05,2]
[408598232,1773918066939,-1000.0,2.968e-05,2]
[408598233,1773918067810,-1000.0,2.968e-05,2]
[408598234,1773918068721,-1000.0,2.968e-05,2]
[408598235,1773918069421,-1000.0,2.968e-05,2]
[408598236,1773918070285,-1000.0,2.998e-05,2]
[408598237,1773918071130,-1000.0,2.998e-05,2]
[408598238,1773918071933,-1000.0,2.998e-05,2]
[408598239,1773918072783,-1000.0,2.998e-05,2]
[408598240,1773918073644,-1000.0,2.998e-05,2]
[408598243,1773918102166,-1000.0,2.968e-05,2]
[408598245,1773918103079,-1000.0,2.968e-05,2]
[408598246,1773918103874,-1000.0,2.968e-05,2]
[408598247,1773918104650,-1000.0,2.968e-05,2]
[408598248,1773918105491,-1000.0,2.968e-05,2]
[408598249,1773918106415,-1000.0,2.998e-05,2]
[408598250,1773918107278,-1000.0,2.998e-05,2]
[408598251,1773918108159,-1000.0,2.968e-05,2]
[408598252,1773918109042,-1000.0,2.968e-05,2]
[408598253,1773918109950,-1000.0,2.968e-05,2]
[408598254,1773918133207,-1000.0,2.968e-05,2]
[408598255,1773918134191,-1000.0,2.968e-05,2]
[408598256,1773918137600,-400.0,2.998e-05,2]
[408598257,1773918150011,-1000.0,2.968e-05,2]
[408598258,1773918151013,-1000.0,2.968e-05,2]
[408598259,1773918151946,-1000.0,2.968e-05,2]
[408598260,1773918152844,-1000.0,2.968e-05,2]
[408598261,1773918153704,-1000.0,2.968e-05,2]
[408598262,1773918154681,-1000.0,2.998e-05,2]
[408598263,1773918155552,-1000.0,2.998e-05,2]
[408598264,1773918156417,-600.0,2.998e-05,2]
[408598269,1773918204765,-165.7347823,2.542e-05,2]
[408598270,1773918204786,-2833.2652177,2.968e-05,2]
[408598274,1773918264454,-1000.0,2.938e-05,2]
[408598275,1773918299519,-459.34763194,2.838e-05,2]
[408598276,1773918299540,-540.65236806,2.938e-05,2]
[408598277,1773918300463,-1000.0,2.938e-05,2]
[408598281,1773918301413,-1000.0,2.938e-05,2]
[408598282,1773918302532,-1000.0,2.938e-05,2]
[408598283,1773918303507,-459.34763194,2.938e-05,2]
[408598285,1773918305824,540.65236806,2.909e-05,2]
[408598286,1773918305851,1000.0,2.909e-05,2]
[408598287,1773918306608,-1000.0,2.909e-05,2]
[408598288,1773918307690,-1000.0,2.909e-05,2]
[408598289,1773918309313,-1000.0,2.909e-05,2]
[408598290,1773918310311,-459.34763194,2.909e-05,2]
[408598296,1773918364776,-1000.0,2.88e-05,2]
[408598297,1773918365795,-1000.0,2.88e-05,2]
[408598298,1773918366930,-1000.0,2.88e-05,2]
[408598300,1773918397774,-1000.0,2.88e-05,2]
[408598302,1773918421080,-1000.0,2.88e-05,2]
[408598303,1773918455733,-500.0,2.888e-05,2]
[408598304,1773918462153,-600.0,2.888e-05,2]
[408598430,1773918602439,-1000.0,2.83e-05,2]
[408598431,1773918603480,-1000.0,2.83e-05,2]
[408598433,1773918604433,-1000.0,2.83e-05,2]
[408598434,1773918605422,-1000.0,2.83e-05,2]
[408598435,1773918606352,-1000.0,2.83e-05,2]
[408598438,1773918607297,-1000.0,2.859e-05,2]
[408598439,1773918608284,-1000.0,2.859e-05,2]
[408598440,1773918609264,-1000.0,2.859e-05,2]
[408598441,1773918610176,-1000.0,2.859e-05,2]
[408598442,1773918611127,-1000.0,2.83e-05,2]
[408598444,1773918612223,-1000.0,2.83e-05,2]
[408598452,1773918613370,-1000.0,2.83e-05,2]
[408598470,1773918644354,-91.95547916,2.802e-05,2]
[408598471,1773918644417,-1807.31741179,2.802e-05,2]
[408598472,1773918644428,-3100.72710905,2.802e-05,2]
[408598473,1773918644437,-507.30903765,2.83e-05,2]
[408598477,1773918646425,-1492.69096235,2.83e-05,2]
[408598478,1773918646435,-1000.0,2.859e-05,2]
[408598479,1773918646444,-300.0,2.887e-05,2]
[408598480,1773918646456,-1189.0,2.887e-05,2]
[408598481,1773918646465,-800.0,3.006e-05,2]
[408598482,1773918646474,-300.0,3.088e-05,2]
[408598483,1773918646483,-60.30903765,3.088e-05,2]
[408598484,1773918646495,-239.69096235,3.088e-05,2]
[408598485,1773918646504,-300.0,3.088e-05,2]
[408598486,1773918646514,-300.0,3.088e-05,2]
[408598487,1773918646523,-300.0,3.088e-05,2]
[408598488,1773918646533,-300.0,3.088e-05,2]
[408598489,1773918646542,-300.0,3.088e-05,2]
[408598490,1773918646554,-300.0,3.088e-05,2]
[408598491,1773918646563,-300.0,3.088e-05,2]
[408598492,1773918646572,-300.0,3.088e-05,2]
[408598493,1773918646581,-300.0,3.088e-05,2]
[408598494,1773918646591,-300.0,3.088e-05,2]
[408598495,1773918646602,-300.0,3.088e-05,2]
[408598496,1773918646611,-300.0,3.088e-05,2]
[408598497,1773918646620,-300.0,3.088e-05,2]
[408598498,1773918646631,-600.0,3.149e-05,2]
[408598499,1773918646640,-420.0,3.176e-05,2]
[408598500,1773918646650,-720.0,3.464e-05,2]
[408598501,1773918646659,-587.0,3.493e-05,2]
[408598502,1773918646668,-489.93891885,3.753e-05,2]
[408598503,1773918646678,-500.0,3.753e-05,2]
[408598504,1773918646688,-500.0,3.753e-05,2]
[408598505,1773918646697,-500.0,3.753e-05,2]
[408598506,1773918646706,-500.0,3.753e-05,2]
[408598507,1773918646715,-500.0,3.753e-05,2]
[408598508,1773918646724,-500.0,3.753e-05,2]
[408598509,1773918646733,-500.0,3.753e-05,2]
[408598510,1773918646742,-501.93817855,3.753e-05,2]
[408598511,1773918646751,-500.0,3.753e-05,2]
[408598512,1773918646761,-500.0,3.753e-05,2]
[408598513,1773918646770,-94270.60527278,3.779e-05,2]
[408598690,1773919824085,-1613.13402198,2.469e-05,2]
[408598936,1773919838333,-3386.86597802,2.469e-05,2]
[408598938,1773919838343,-5000.0,2.494e-05,2]
[408598940,1773919838353,-5000.0,2.519e-05,2]
[408598942,1773919838362,-1200.0,2.543e-05,2]
[408598944,1773919838371,-300.0,2.569e-05,2]
[408598946,1773919838380,-800.0,2.736e-05,2]
[408598948,1773919838389,-420.0,2.826e-05,2]
[408598950,1773919838398,-569.292117,2.87e-05,2]
[408598952,1773919838407,-300.0,2.897e-05,2]
[408598954,1773919838416,-300.0,2.897e-05,2]
[408598956,1773919838425,-300.0,2.897e-05,2]
[408598958,1773919838434,-300.0,2.897e-05,2]
[408598960,1773919838443,-300.0,2.897e-05,2]
[408598962,1773919838452,-300.0,2.897e-05,2]
[408598964,1773919838461,-300.0,2.897e-05,2]
[408598966,1773919838470,-300.0,2.897e-05,2]
[408598968,1773919838479,-300.0,2.897e-05,2]
[408598970,1773919838490,-300.0,2.897e-05,2]
[408598972,1773919838498,-300.0,2.897e-05,2]
[408598974,1773919838507,-300.0,2.897e-05,2]
[408598976,1773919838517,-300.0,2.897e-05,2]
[408598978,1773919838526,-300.0,2.897e-05,2]
[408598980,1773919838535,-300.0,2.897e-05,2]
[408598982,1773919838544,-600.0,2.954e-05,2]
[408598984,1773919838553,-569.292117,2.991e-05,2]
[408598986,1773919838562,-587.0,3.108e-05,2]
[408598988,1773919838571,-569.292117,3.112e-05,2]
[408598990,1773919838580,-569.292117,3.233e-05,2]
[408598992,1773919838589,-720.0,3.249e-05,2]
[408598994,1773919838598,-569.292117,3.353e-05,2]
[408598996,1773919838608,-806.0,3.419e-05,2]
[408598998,1773919838617,-569.292117,3.474e-05,2]
[408599000,1773919838628,-500.0,3.483e-05,2]
[408599002,1773919838637,-500.0,3.483e-05,2]
[408599004,1773919838647,-500.0,3.483e-05,2]
[408599006,1773919838656,-229.13887075,3.483e-05,2]
[408599008,1773919838665,-500.0,3.483e-05,2]
[408599010,1773919838674,-500.0,3.483e-05,2]
[408599012,1773919838683,-384.04689768,3.483e-05,2]
[408599014,1773919838692,-500.0,3.483e-05,2]
[408599016,1773919838701,-500.0,3.483e-05,2]
[408599018,1773919838711,-500.0,3.483e-05,2]
[408599020,1773919838720,-247.2838057,3.483e-05,2]
[408599022,1773919838730,-500.0,3.483e-05,2]
[408599024,1773919838739,-500.0,3.483e-05,2]
[408599026,1773919838748,-500.0,3.483e-05,2]
[408599028,1773919838758,-1193802.74016087,3.501e-05,2]
[408599030,1773919838770,-24030.50160993,3.501e-05,2]
[408599205,1773919840615,-5890.6388292,3.501e-05,2]
[408599300,1773919846420,-5000.0,3.466e-05,2]
[408599301,1773919846431,-8342.66027182,3.501e-05,2]
[408599351,1773921032380,-5000.0,2.357e-05,2]
[408599354,1773921032392,-5000.0,2.381e-05,2]
[408599357,1773921032401,-963.0,2.404e-05,2]
[408599359,1773921032410,-1409.97724823,2.405e-05,2]
[408599483,1773921038385,-3590.02275177,2.405e-05,2]
[408599484,1773921038395,-300.0,2.453e-05,2]
[408599485,1773921038405,-6316.2161096,2.504e-05,2]
[408599486,1773921038415,-300.0,2.553e-05,2]
[408599487,1773921038424,-300.0,2.553e-05,2]
[408599488,1773921038435,-300.0,2.553e-05,2]
[408599489,1773921038447,-300.0,2.553e-05,2]
[408599490,1773921038457,-300.0,2.553e-05,2]
[408599491,1773921038467,-300.0,2.553e-05,2]
[408599492,1773921038476,-300.0,2.553e-05,2]
[408599493,1773921038485,-300.0,2.553e-05,2]
[408599494,1773921038497,-300.0,2.553e-05,2]
[408599495,1773921038506,-300.0,2.553e-05,2]
[408599496,1773921038517,-300.0,2.553e-05,2]
[408599497,1773921038526,-300.0,2.553e-05,2]
[408599498,1773921038536,-300.0,2.553e-05,2]
[408599499,1773921038546,-300.0,2.553e-05,2]
[408599500,1773921038557,-300.0,2.553e-05,2]
[408599501,1773921038567,-600.0,2.603e-05,2]
[408599502,1773921038577,-420.0,2.698e-05,2]
[408599503,1773921038586,-720.0,2.863e-05,2]
[408599504,1773921038595,-800.0,2.889e-05,2]
[408599505,1773921038604,-587.0,2.968e-05,2]
[408599506,1773921038613,-864.0,3.15e-05,2]
[408599507,1773921038622,-1000.0,3.465e-05,2]
[408599508,1773921038631,-500.0,3.483e-05,2]
[408599509,1773921038640,-500.0,3.483e-05,2]
[408599510,1773921038650,-500.24088294,3.483e-05,2]
[408599511,1773921038659,-500.0,3.483e-05,2]
[408599512,1773921038669,-500.0,3.483e-05,2]
[408599513,1773921038678,-500.0,3.483e-05,2]
[408599514,1773921038687,-160.04409899,3.483e-05,2]
[408599515,1773921038697,-158.04328435,3.483e-05,2]
[408599516,1773921038706,-500.0,3.483e-05,2]
[408599517,1773921038715,-257.43050594,3.483e-05,2]
[408599518,1773921038727,-163.6450912,3.483e-05,2]
[408599519,1773921038739,-655.3184012,3.487e-05,2]
[408599520,1773921038749,-16535.7766724,3.487e-05,2]
[408599521,1773921038758,-271.5580125,3.487e-05,2]
[408599522,1773921038767,-1000.0,3.811e-05,2]
[408599523,1773921038778,-244.0,3.811e-05,2]
[408599524,1773921038787,-271.5580125,3.837e-05,2]
[408599525,1773921038797,-3689.6304971,3.938e-05,2]
[408599526,1773921038806,-14326.55767,4e-05,2]
[408599527,1773921038816,-2254.9904851,4e-05,2]
[408599528,1773921038825,-2150.738,4.008e-05,2]
[408599529,1773921038835,-1000.0,4.031e-05,2]
[408599530,1773921038844,-1000.0,4.031e-05,2]
[408599531,1773921038853,-500.0,4.031e-05,2]
[408599532,1773921038863,-823.2678437,4.038e-05,2]
[408599533,1773921038872,-271.5580125,4.187e-05,2]
[408599534,1773921038882,-1000.0,4.192e-05,2]
[408599535,1773921039137,-492.0,4.192e-05,2]
[408599536,1773921039149,-271.5580125,4.537e-05,2]
[408599537,1773921039158,-2230.315306,4.556e-05,2]
[408599538,1773921039167,-1000.72789408,4.578e-05,2]
[408599539,1773921039177,-508.23898334,4.578e-05,2]
[408599540,1773921039186,-641.0,4.608e-05,2]
[408599541,1773921039199,-1397.0,4.608e-05,2]
[408599542,1773921039208,-2189.0,4.608e-05,2]
[408599543,1773921039218,-735.0,4.608e-05,2]
[408599544,1773921039227,-438.0,4.608e-05,2]
[408599545,1773921039236,-185.249,4.608e-05,2]
[408599546,1773921039245,-1000.0,4.611e-05,2]
[408599547,1773921039255,-791.0,4.611e-05,2]
[408599548,1773921039264,-40664.90444036,4.684e-05,2]
[408599549,1773921039274,-230.04946136,4.763e-05,2]
[408599550,1773921039283,-158.04328435,4.763e-05,2]
[408599551,1773921039292,-160.04383234,4.763e-05,2]
[408599552,1773921039301,-258.27073444,4.763e-05,2]
[408599553,1773921039311,-500.0,4.763e-05,2]
[408599554,1773921039319,-500.0,4.763e-05,2]
[408599555,1773921039329,-158.24333915,4.763e-05,2]
[408599556,1773921039338,-158.04328435,4.763e-05,2]
[408599557,1773921039347,-160.04383335,4.763e-05,2]
[408599558,1773921039356,-500.0,4.763e-05,2]
[408599559,1773921039366,-500.0,4.763e-05,2]
[408599560,1773921039375,-500.0,4.763e-05,2]
[408599561,1773921039384,-500.0,4.763e-05,2]
[408599562,1773921039395,-160.02101151,4.763e-05,2]
[408599563,1773921039405,-500.0,4.763e-05,2]
[408599564,1773921039415,-500.0,4.763e-05,2]
[408599565,1773921039424,-500.0,4.763e-05,2]
[408599566,1773921039433,-299.07329982,4.781e-05,2]
[408599567,1773921039442,-67979.22733467,4.784e-05,2]
[408599578,1773921040741,-6301.8,4.784e-05,2]
[408599579,1773921040753,-2357.72519592,4.784e-05,2]
[408599586,1773921045356,-2643.86499768,4.736e-05,2]
[408599587,1773921045365,-76016.79507045,4.784e-05,2]
[408599588,1773921045378,-666.48382913,4.784e-05,2]
[408599646,1773921623942,-1114.3688801,3.652e-05,2]
[408599668,1773921997200,151.0,8.4e-05,120]
[408599671,1773922027437,151.0,8.4e-05,120]
[408599672,1773922066543,151.0,8.4e-05,120]
[408599674,1773922096579,151.0,8.4e-05,120]
[408599678,1773922129676,170.313102,2.923e-05,120]
[408599718,1773922137458,151.0,8.4e-05,120]
[408599807,1773922178049,151.0,8.4e-05,120]
[408599818,1773922215416,151.0,8.4e-05,120]
[408599831,1773922232499,-1200.48487965,2.864e-05,2]
[408600025,1773922240970,-3799.51512035,2.864e-05,2]
[408600026,1773922240980,-5000.0,2.893e-05,2]
[408600027,1773922240990,-170.313102,2.923e-05,2]
[408600028,1773922241000,-300.0,3.437e-05,2]
[408600029,1773922241009,-300.0,3.437e-05,2]
[408600030,1773922241019,-1200.0,3.437e-05,2]
[408600031,1773922241031,-800.0,3.457e-05,3]
[408600032,1773922241041,-300.0,3.472e-05,2]
[408600033,1773922241051,-398.3314698,3.764e-05,2]
[408600034,1773922241060,-420.0,3.781e-05,2]
[408600035,1773922241071,-587.0,4.159e-05,2]
[408600036,1773922241080,-12608.45269113,4.584e-05,2]
[408600037,1773922241509,-349.5,4.584e-05,2]
[408600044,1773922243758,-7500.02355923,4.584e-05,2]
[408600045,1773922243918,-22839.18498112,4.584e-05,2]
[408600062,1773922257171,151.0,8.4e-05,120]
[408600063,1773922287909,151.0,8.4e-05,120]
[408600064,1773922327521,151.0,8.4e-05,120]
[408600065,1773922377326,151.0,8.4e-05,120]
[408600066,1773922416519,151.0,8.4e-05,120]
[408600128,1773922447367,151.0,8.4e-05,120]
[408600135,1773922485615,151.0,8.4e-05,120]
[408600147,1773922527582,151.0,8.4e-05,120]
[408600155,1773922577816,151.0,8.4e-05,120]
[408600156,1773922617262,151.0,8.4e-05,120]
[408600158,1773922665430,151.0,8.4e-05,120]
[408600160,1773922695613,151.0,8.4e-05,120]
[408600161,1773922735201,151.0,8.4e-05,120]
[408600162,1773922777522,151.0,8.4e-05,120]
[408600164,1773922807853,151.0,8.4e-05,120]
[408600165,1773922844897,151.0,8.4e-05,120]
[408600166,1773922885573,151.0,8.4e-05,120]
[408600168,1773922920311,466.44396632,8.4e-05,120]
[408600169,1773922925478,151.0,8.4e-05,120]
[408600170,1773922957140,151.0,8.4e-05,120]
[408600171,1773922995276,151.0,8.4e-05,120]
[408600173,1773923037219,151.0,8.4e-05,120]
[408600175,1773923075254,151.0,8.4e-05,120]
[408600176,1773923105652,151.0,8.4e-05,120]
[408600178,1773923147315,151.0,8.4e-05,120]
[408600179,1773923185296,151.0,8.4e-05,120]
[408600180,1773923217617,151.0,8.4e-05,120]
[408600201,1773923424814,-1592.7625988,3.974e-05,2]
[408600347,1773923438223,-400.6104998,3.293e-05,2]
[408600349,1773923438238,-414.7992602,3.293e-05,2]
[408600351,1773923438248,-55.15472521,3.974e-05,2]
[408600353,1773923438260,-3352.08267599,3.974e-05,2]
[408600355,1773923438269,-5000.0,4.014e-05,2]
[408600356,1773923438280,-935.06,4.2e-05,2]
[408600357,1773923438289,-196047.14297161,4.2e-05,2]
[408600439,1773923446040,-521.19102886,4.2e-05,2]
[408600443,1773923446054,-535292.63926312,4.2e-05,2]
[408600647,1773924631961,-1074.31782807,3.235e-05,2]
[408600650,1773924631972,-2086.14,3.235e-05,2]
[408600852,1773924638558,-1839.54217193,3.235e-05,2]
[408600853,1773924638568,-5000.0,3.268e-05,2]
[408600854,1773924638578,-758.0,3.3e-05,2]
[408600855,1773924638587,-5000.0,3.301e-05,2]
[408600856,1773924638596,-300.0,3.333e-05,2]
[408600857,1773924638606,-300.0,3.333e-05,2]
[408600858,1773924638616,-300.0,3.333e-05,2]
[408600859,1773924638628,-300.0,3.333e-05,2]
[408600860,1773924638638,-800.0,3.467e-05,3]
[408600861,1773924638649,-159.936668,3.506e-05,2]
[408600862,1773924638660,-420.0,3.666e-05,2]
[408600863,1773924638672,-159.936668,3.752e-05,2]
[408600864,1773924638684,-500.0,3.973e-05,2]
[408600865,1773924638695,-500.0,3.973e-05,2]
[408600866,1773924638706,-500.0,3.973e-05,2]
[408600867,1773924638718,-500.0,3.973e-05,2]
[408600868,1773924638731,-253.50744303,3.973e-05,2]
[408600869,1773924638742,-159.936668,3.998e-05,2]
[408600870,1773924638753,-545.63412883,4e-05,2]
[408600873,1773924640655,-757.74375108,4e-05,2]
[408600879,1773924643138,-2699.99999995,4e-05,2]
[408600882,1773924643249,-5000.01635742,4e-05,2]
[408600888,1773924643306,-6744.46012132,4e-05,2]
[408600963,1773924646296,-5000.0,3.96e-05,2]
[408600964,1773924646306,-3503.56492857,4e-05,2]
[408600965,1773924646318,-795110.35974269,4e-05,2]
[408600971,1773925224517,-1486.79621432,3.01e-05,2]
[408600972,1773925224533,-3513.20378568,3.01e-05,2]
[408600973,1773925224543,-540.65236806,3.04e-05,2]
[408600974,1773925224553,-946.14384626,3.071e-05,2]
[408601075,1773925832188,-275.752,2.824e-05,2]
[408601077,1773925832200,-4724.248,2.824e-05,2]
[408601079,1773925832210,-648.47102114,2.853e-05,2]